bitfinex-derivatives/quotes_BTCF0:USTF0_20260111
["timestamp","ask_amount","ask_price","bid_price","bid_amount"]
[1768135426355,0.09937395,90934.0,90915.0,0.011013]
[1768135426544,0.09827064,90933.0,90915.0,0.011013]
[1768135426744,0.19764459,90933.0,90915.0,0.011013]
[1768135427255,0.19764459,90932.0,90913.0,0.09492621]
[1768135427655,0.19764459,90932.0,90908.0,0.0936]
[1768135427856,0.19764459,90932.0,90909.0,0.09492621]
[1768135428057,0.011012,90928.0,90909.0,0.09492621]
[1768135428362,0.011012,90928.0,90915.0,0.011013]
[1768135429051,0.011011,90931.0,90917.0,0.011013]
[1768135429757,0.011011,90931.0,90916.0,0.011013]
[1768135430455,0.011011,90931.0,90918.0,0.011013]
[1768135433663,0.011011,90929.0,90916.0,0.011013]
[1768135434061,0.011011,90931.0,90909.0,0.09492621]
[1768135435460,0.011011,90931.0,90917.0,0.011013]
[1768135436662,0.19764459,90930.0,90917.0,0.011013]
[1768135436861,0.19764459,90929.0,90908.0,0.18852621]
[1768135437161,0.20865559,90929.0,90908.0,0.18852621]
[1768135437463,0.011012,90928.0,90908.0,0.18852621]
[1768135438562,0.011012,90928.0,90916.0,0.011013]
[1768135438865,0.011012,90926.0,90913.0,0.011013]
[1768135439566,0.011012,90926.0,90915.0,0.011013]
[1768135440168,0.19764459,90935.0,90917.0,0.011013]
[1768135440469,0.011011,90932.0,90918.0,0.011013]
[1768135440764,0.011011,90931.0,90918.0,0.011013]
[1768135440956,0.011012,90929.0,90914.0,0.09492621]
[1768135442067,0.011011,90930.0,90916.0,0.011013]
[1768135442266,0.19764459,90934.0,90916.0,0.011013]
[1768135442467,0.19764459,90934.0,90918.0,0.011013]
[1768135442862,0.11038495,90934.0,90918.0,0.011013]
[1768135443566,0.09937395,90934.0,90920.0,0.011012]
[1768135443770,0.09937395,90934.0,90914.0,0.08493821]
[1768135444071,0.09937395,90934.0,90920.0,0.011012]
[1768135446568,0.011011,90935.0,90920.0,0.011012]
[1768135447267,0.01342798,90948.0,90908.0,0.0936]
[1768135447268,0.00241898,90948.0,90927.0,0.09768462]
[1768135447459,0.00241898,90948.0,90928.0,0.0936]
[1768135448165,0.00241898,90948.0,90934.0,0.011011]
[1768135448967,0.011009,90947.0,90932.0,0.011011]
[1768135449168,0.00241898,90948.0,90929.0,0.09663284]
[1768135449356,0.01342798,90948.0,90932.0,0.011011]
[1768135449564,0.01342798,90948.0,90928.0,0.10527185]
[1768135449565,0.10113022,90944.0,90933.0,0.0936]
[1768135449765,0.01101,90942.0,90933.0,0.0936]
[1768135449961,0.09012022,90944.0,90933.0,0.0936]
[1768135450173,0.01101,90940.0,90924.0,0.011012]
[1768135450372,0.20110832,90943.0,90926.0,0.011012]
[1768135450569,0.20110832,90943.0,90927.0,0.0936]
[1768135450772,0.20110832,90943.0,90928.0,0.0936]
[1768135450773,0.10113022,90943.0,90928.0,0.0936]
[1768135450970,0.01101,90941.0,90928.0,0.0936]
[1768135452167,0.09012022,90943.0,90928.0,0.0936]
[1768135452375,0.01101,90940.0,90928.0,0.0936]
[1768135453075,0.09012022,90943.0,90928.0,0.0936]
[1768135453477,0.10113022,90943.0,90930.0,0.011011]
[1768135453677,0.00549786,90945.0,90929.0,0.09663284]
[1768135453877,0.00549786,90945.0,90932.0,0.011011]
[1768135454577,0.01101,90944.0,90929.0,0.10764384]
[1768135454779,0.00549786,90945.0,90929.0,0.09663284]
[1768135456382,0.01101,90944.0,90930.0,0.011011]
[1768135457575,0.00549786,90945.0,90928.0,0.0936]
[1768135457576,0.01101,90940.0,90928.0,0.0936]
[1768135457782,0.09561808,90945.0,90928.0,0.104611]
[1768135457970,0.01101,90942.0,90928.0,0.104611]
[1768135459488,0.01101,90941.0,90928.0,0.0936]
[1768135460097,0.09561808,90945.0,90928.0,0.0936]
[1768135463092,0.01101,90942.0,90928.0,0.0936]
[1768135463393,0.01101,90942.0,90930.0,0.011011]
[1768135464093,0.01650786,90945.0,90928.0,0.19023284]
[1768135464292,0.01650786,90945.0,90932.0,0.011011]
[1768135465098,0.00549786,90945.0,90928.0,0.19023284]
[1768135465394,0.00549786,90945.0,90931.0,0.011011]
[1768135465600,0.01101,90942.0,90930.0,0.011011]
[1768135467502,0.09012022,90944.0,90929.0,0.09356]
[1768135467702,0.01101,90943.0,90930.0,0.011011]
[1768135467902,0.01101,90942.0,90930.0,0.011011]
[1768135468103,0.01101,90942.0,90929.0,0.09356]
[1768135468802,0.09012022,90939.0,90929.0,0.09356]
[1768135471802,0.01101,90942.0,90929.0,0.09356]
[1768135472104,0.01101,90941.0,90929.0,0.09356]
[1768135474401,0.01101,90939.0,90929.0,0.09356]
[1768135475204,0.01101,90941.0,90929.0,0.09356]
[1768135477706,0.01101,90941.0,90930.0,0.011011]
[1768135478098,0.01650786,90945.0,90932.0,0.011011]
[1768135478297,0.01650786,90945.0,90931.0,0.011011]
[1768135478497,0.01650786,90945.0,90931.0,0.1012775]
[1768135478699,0.01650786,90945.0,90933.0,0.011011]
[1768135479801,0.00549786,90945.0,90933.0,0.011011]
[1768135481707,0.10549786,90945.0,90933.0,0.011011]
[1768135485009,0.11650786,90945.0,90933.0,0.011011]
[1768135486004,0.10549786,90945.0,90933.0,0.011011]
[1768135486212,0.11650686,90945.0,90929.0,0.09356]
[1768135486405,0.01101,90944.0,90929.0,0.09356]
[1768135486811,0.01101,90944.0,90932.0,0.011011]
[1768135487211,0.01101,90943.0,90929.0,0.104571]
[1768135487410,0.01101,90943.0,90930.0,0.011011]
[1768135488612,0.11650786,90945.0,90929.0,0.09356]
[1768135489413,0.11650786,90945.0,90932.0,0.011011]
[1768135489809,0.09865255,90942.0,90931.0,0.011011]
[1768135490015,0.19183723,90942.0,90931.0,0.011011]
[1768135490416,0.09865255,90942.0,90931.0,0.011011]
[1768135492603,0.09865255,90942.0,90932.0,0.011011]
[1768135494619,0.09865255,90942.0,90934.0,0.011011]
[1768135495319,0.09865255,90942.0,90932.0,0.011011]
[1768135496113,0.09865255,90942.0,90927.0,0.09356]
[1768135496318,0.09865255,90942.0,90931.0,0.011011]
[1768135497312,0.09865255,90942.0,90932.0,0.011011]
[1768135499423,0.09865255,90942.0,90933.0,0.011011]
[1768135500426,0.09865255,90942.0,90923.0,0.09356]
[1768135500924,0.09865255,90942.0,90923.0,0.1838265]
[1768135501127,0.10549786,90945.0,90935.0,0.011011]
[1768135502022,0.20415041,90945.0,90935.0,0.011011]
[1768135503428,0.20409541,90945.0,90935.0,0.011011]
[1768135504124,0.20409541,90945.0,90933.0,0.011011]
[1768135504429,0.01101,90944.0,90925.0,0.011012]
[1768135504630,0.20409541,90945.0,90925.0,0.011012]
[1768135505432,0.20409541,90945.0,90932.0,0.011011]
[1768135505926,0.20409541,90945.0,90934.0,0.011011]
[1768135507032,0.29918384,90945.0,90934.0,0.011011]
[1768135507735,0.29918384,90945.0,90935.0,0.011011]
[1768135508929,0.29918384,90945.0,90924.0,0.0902665]
[1768135509232,0.31019384,90945.0,90933.0,0.011011]
[1768135509933,0.09407504,90944.0,90933.0,0.011011]
[1768135511632,0.01101,90943.0,90931.0,0.011011]
[1768135511834,0.09407504,90944.0,90932.0,0.011011]
[1768135512026,0.10508504,90944.0,90932.0,0.011011]
[1768135512227,0.09407504,90944.0,90932.0,0.011011]
[1768135513141,0.18738285,90944.0,90932.0,0.011011]
[1768135513437,0.18738285,90944.0,90924.0,0.0902665]
[1768135513438,0.01101,90943.0,90931.0,0.011011]
[1768135513631,0.10508504,90943.0,90931.0,0.011011]
[1768135514231,0.19839285,90943.0,90931.0,0.011011]
[1768135514740,0.09407504,90942.0,90931.0,0.011011]
[1768135515238,0.09407504,90942.0,90932.0,0.011011]
[1768135515938,0.09407504,90942.0,90928.0,0.09356]
[1768135515939,0.09407504,90942.0,90933.0,0.011011]
[1768135517035,0.18738285,90942.0,90933.0,0.011011]
[1768135517233,0.09407504,90941.0,90933.0,0.011011]
[1768135519645,0.18738285,90941.0,90933.0,0.011011]
[1768135520229,0.18738285,90941.0,90934.0,0.011011]
[1768135522244,0.18738285,90941.0,90935.0,0.011011]
[1768135523240,0.18738285,90941.0,90928.0,0.09356]
[1768135523541,0.09407504,90940.0,90928.0,0.09356]
[1768135524047,0.09407504,90940.0,90935.0,0.011011]
[1768135528646,0.09407504,90940.0,90928.0,0.09356]
[1768135529040,0.18738285,90940.0,90928.0,0.09356]
[1768135530446,0.18738285,90940.0,90933.0,0.011011]
[1768135536255,0.09279472,90939.0,90933.0,0.011011]
[1768135538760,0.09279472,90939.0,90932.0,0.011011]
[1768135539554,0.09279472,90939.0,90933.0,0.011011]
[1768135540355,0.09279472,90939.0,90935.0,0.011011]
[1768135541751,7.2e-07,90939.0,90928.0,0.09356]
[1768135541951,0.10544286,90945.0,90936.0,0.01101]
[1768135543248,0.00241898,90948.0,90936.0,0.01101]
[1768135543448,0.01342798,90948.0,90936.0,0.01101]
[1768135543749,0.011009,90947.0,90928.0,0.09356]
[1768135543950,0.09883607,90983.0,90929.0,0.19838298]
[1768135543951,0.09279472,90953.0,90929.0,0.19838298]
[1768135544148,0.011008,90958.0,90936.0,0.01101]
[1768135544359,0.08,90958.0,90936.0,0.01101]
[1768135544552,0.08,90958.0,90939.0,0.01101]
[1768135545254,0.08,90958.0,90938.0,0.01101]
[1768135546052,0.09910418,90957.0,90938.0,0.01101]
[1768135546252,0.1918989,90954.0,90938.0,0.01101]
[1768135546452,0.1918989,90953.0,90938.0,0.01101]
[1768135546758,0.1918989,90950.0,90938.0,0.01101]
[1768135548258,0.1918989,90950.0,90941.0,0.01101]
[1768135549661,9e-07,90950.0,90946.0,0.011009]
[1768135549851,0.09356,90964.0,90946.0,0.011009]
[1768135550156,0.011007,90962.0,90942.0,0.01101]
[1768135550459,0.011007,90963.0,90942.0,0.01101]
[1768135550662,0.011008,90959.0,90938.0,0.10457]
[1768135550856,0.011007,90962.0,90940.0,0.01101]
[1768135551053,0.09356,90964.0,90938.0,0.09356]
[1768135551458,0.09356,90964.0,90947.0,0.011009]
[1768135551763,0.1918989,90961.0,90943.0,0.01101]
[1768135551950,0.1918989,90961.0,90939.0,0.09952482]
[1768135551951,0.09279472,90961.0,90945.0,0.011009]
[1768135552257,0.1918989,90961.0,90945.0,0.011009]
[1768135552458,0.09910418,90960.0,90945.0,0.011009]
[1768135553160,0.09910418,90960.0,90947.0,0.011009]
[1768135553659,0.09910418,90960.0,90945.0,0.011009]
[1768135555160,0.09910418,90960.0,90939.0,0.19838298]
[1768135556163,0.011008,90958.0,90942.0,0.01101]
[1768135556758,0.09910418,90960.0,90942.0,0.01101]
[1768135557563,0.09910418,90960.0,90944.0,0.01101]
[1768135558165,0.09910418,90960.0,90944.0,0.011009]
[1768135558465,0.11011218,90960.0,90944.0,0.011009]
[1768135558856,0.09910418,90960.0,90940.0,0.09885816]
[1768135559852,0.09910418,90960.0,90947.0,0.011009]
[1768135560056,0.09910418,90959.0,90940.0,0.09885816]
[1768135560757,0.09910418,90959.0,90947.0,0.011009]
[1768135560958,0.09910418,90959.0,90940.0,0.09885816]
[1768135560959,0.11011218,90959.0,90940.0,0.09885816]
[1768135561158,0.09910418,90959.0,90942.0,0.01101]
[1768135561469,0.09910418,90958.0,90943.0,0.01101]
[1768135562472,0.09910418,90958.0,90944.0,0.011009]
[1768135563169,0.09910418,90958.0,90939.0,0.09952482]
[1768135563870,0.09910418,90958.0,90948.0,0.011009]
[1768135564367,0.09910418,90958.0,90939.0,0.09952482]
[1768135564874,0.09910418,90958.0,90947.0,0.011009]
[1768135565181,0.00549665,90965.0,90945.0,0.011009]
[1768135565182,0.09138565,90956.0,90945.0,0.011009]
[1768135565672,0.09138565,90956.0,90946.0,0.011009]
[1768135569172,0.09138565,90956.0,90944.0,0.01101]
[1768135570075,0.09780557,90955.0,90944.0,0.01101]
[1768135571073,0.09780557,90955.0,90947.0,0.011009]
[1768135571466,0.09780557,90955.0,90938.0,0.09356]
[1768135572175,0.09780557,90955.0,90946.0,0.011009]
[1768135574076,0.09780557,90955.0,90943.0,0.01101]
[1768135576773,0.09780557,90955.0,90944.0,0.011009]
[1768135577479,0.09780557,90955.0,90943.0,0.01101]
[1768135577779,0.09780557,90955.0,90944.0,0.01101]
[1768135578679,0.09780557,90955.0,90944.0,0.011009]
[1768135579472,0.09780557,90955.0,90940.0,0.07897417]
[1768135579874,0.09780557,90955.0,90944.0,0.01101]
[1768135580681,0.09780557,90955.0,90945.0,0.011009]
[1768135581277,0.09780557,90955.0,90946.0,0.011009]
[1768135583386,0.09780557,90955.0,90948.0,0.011009]
[1768135583575,0.09780557,90955.0,90948.0,0.104569]
[1768135583979,0.09780557,90955.0,90948.0,0.09356]
[1768135587383,0.09780557,90955.0,90949.0,0.011009]
[1768135587587,0.09780557,90955.0,90948.0,0.09356]
[1768135588088,0.09780557,90955.0,90948.0,0.104569]
[1768135588284,0.01650365,90965.0,90948.0,0.104569]
[1768135588887,0.00549665,90965.0,90948.0,0.09356]
[1768135589277,0.011007,90962.0,90948.0,0.104569]
[1768135590082,0.011007,90962.0,90949.0,0.011009]
[1768135590287,0.09780557,90961.0,90949.0,0.011009]
[1768135590492,0.00549665,90965.0,90948.0,0.28885087]
[1768135590978,0.10330222,90965.0,90948.0,0.1935085]
[1768135591380,0.10330222,90965.0,90957.0,0.011008]
[1768135591575,0.10330222,90965.0,90959.0,0.011008]
[1768135591784,0.09780557,90973.0,90952.0,0.10635137]
[1768135591974,0.09780557,90973.0,90954.0,0.19529087]
[1768135592574,0.09780557,90973.0,90958.0,0.011008]
[1768135592775,0.011006,90975.0,90958.0,0.104568]
[1768135592976,0.09780557,90975.0,90962.0,0.011007]
[1768135593176,0.09780557,90975.0,90961.0,0.011007]
[1768135593381,0.10022375,90978.0,90963.0,0.011007]
[1768135593583,0.10022375,90978.0,90959.0,0.0999485]
[1768135593979,0.10022375,90978.0,90958.0,0.19991037]
[1768135593980,0.09094547,90975.0,90958.0,0.09356]
[1768135594379,0.09094547,90974.0,90953.0,0.09466756]
[1768135594581,0.10195147,90971.0,90954.0,0.09356]
[1768135595480,0.09094547,90971.0,90954.0,0.09356]
[1768135595889,0.09094547,90971.0,90955.0,0.011008]
[1768135597395,0.10195147,90971.0,90953.0,0.09466756]
[1768135597593,0.10195147,90971.0,90954.0,0.09356]
[1768135597792,0.09094547,90971.0,90954.0,0.104568]
[1768135597990,0.09094547,90971.0,90954.0,0.09356]
[1768135599186,0.18259759,90974.0,90954.0,0.28606326]
[1768135599994,0.18259759,90974.0,90960.0,0.011008]
[1768135601489,0.09094547,90974.0,90960.0,0.011008]
[1768135601988,0.00241818,90978.0,90959.0,0.09466756]
[1768135602188,0.09336365,90978.0,90959.0,0.09466756]
[1768135602488,0.09094547,90975.0,90959.0,0.011008]
[1768135602688,0.011006,90974.0,90954.0,0.28606326]
[1768135602888,0.09094547,90974.0,90959.0,0.011008]
[1768135603094,0.09094547,90974.0,90961.0,0.011007]
[1768135603488,0.09094547,90974.0,90954.0,0.28606326]
[1768135603489,0.0940695,91008.0,90987.0,0.0978357]
[1768135603689,0.0940695,91008.0,90982.0,0.011005]
[1768135603690,0.00631457,91008.0,90982.0,0.011005]
[1768135603891,0.09356,91010.0,90983.0,0.09356]
[1768135604102,0.09356,91009.0,90998.0,0.011003]
[1768135604295,0.09356,91008.0,90986.0,0.011004]
[1768135604496,0.09356,91007.0,90986.0,0.011004]
[1768135604705,0.09356,91007.0,90994.0,0.011003]
[1768135604992,0.09356,91007.0,90983.0,0.09356]
[1768135605196,0.011001,91015.0,90991.0,0.19250326]
[1768135605385,0.011001,91015.0,90988.0,0.0978357]
[1768135605589,0.09094547,91013.0,90994.0,0.011003]
[1768135605801,0.09165212,91012.0,90994.0,0.011003]
[1768135606092,0.09094547,91009.0,90996.0,0.011003]
[1768135606294,1.2e-07,91008.0,90988.0,0.19250326]
[1768135606496,0.09352,91016.0,91002.0,0.011002]
[1768135606699,0.09352,91017.0,91002.0,0.011002]
[1768135606998,0.09352,91017.0,90999.0,0.011003]
[1768135607588,0.09352,91017.0,90998.0,0.011003]
[1768135607799,0.09352,91017.0,90993.0,0.18818756]
[1768135608001,0.09352,91017.0,90997.0,0.011003]
[1768135608196,0.09094547,91015.0,90993.0,0.18818756]
[1768135608390,0.09094547,91013.0,90997.0,0.011003]
[1768135609600,0.09094547,91013.0,90994.0,0.011003]
[1768135611398,0.011001,91012.0,90994.0,0.011003]
[1768135611604,0.10194647,91012.0,90994.0,0.011003]
[1768135611805,0.09094547,91012.0,90996.0,0.011003]
[1768135612188,0.09094547,91012.0,90999.0,0.011003]
[1768135612494,0.09094547,91012.0,90998.0,0.011003]
[1768135612801,0.09352,91017.0,90998.0,0.09466756]
[1768135612990,0.09352,91017.0,90997.0,0.0978357]
[1768135612991,0.09094547,91018.0,90999.0,0.09466756]
[1768135613186,0.09094547,91018.0,90997.0,0.011003]
[1768135613187,0.09094547,91016.0,90997.0,0.011003]
[1768135613497,0.011001,91017.0,91001.0,0.09466756]
[1768135613687,0.09094547,91017.0,91002.0,0.011002]
[1768135614295,0.19359759,91021.0,91002.0,0.10566956]
[1768135614494,0.09094547,91018.0,91002.0,0.011002]
[1768135614987,0.10194647,91015.0,90997.0,0.10567056]
[1768135615192,0.09094547,91014.0,90999.0,0.011003]
[1768135615699,0.09094547,91017.0,90999.0,0.09466756]
[1768135615896,0.10194547,91021.0,91003.0,0.011002]
[1768135616090,0.18194547,91021.0,91003.0,0.011002]
[1768135616403,0.09094547,91020.0,91003.0,0.011002]
[1768135616600,0.10194647,91019.0,91003.0,0.011002]
[1768135616996,0.09094547,91019.0,91003.0,0.011002]
[1768135617402,0.10194647,91019.0,91003.0,0.011002]
[1768135617705,0.09094547,91019.0,91003.0,0.011002]
[1768135619206,0.09094547,91019.0,91005.0,0.011002]
[1768135621100,0.09165212,91023.0,91007.0,0.011002]
[1768135621101,0.011,91023.0,91007.0,0.011002]
[1768135621307,0.091,91023.0,91007.0,0.011002]
[1768135621503,0.18194547,91023.0,91007.0,0.011002]
[1768135621810,0.09094547,91022.0,91007.0,0.011002]
[1768135622012,0.09094547,91021.0,91007.0,0.011002]
[1768135622198,0.09094547,91020.0,91003.0,0.09352]
[1768135622500,0.09094547,91019.0,91003.0,0.09352]
[1768135622706,0.09094547,91019.0,91003.0,0.104522]
[1768135623209,0.09094547,91019.0,91007.0,0.011002]
[1768135624210,0.09094547,91019.0,91003.0,0.104522]
[1768135624708,0.10194647,91019.0,91003.0,0.104522]
[1768135624904,0.011001,91017.0,91003.0,0.104522]
[1768135625206,0.10752862,91018.0,91003.0,0.09352]
[1768135627212,0.09652762,91018.0,91004.0,0.011002]
[1768135627396,0.09652762,91018.0,91006.0,0.011002]
[1768135627598,0.09652762,91024.0,91005.0,0.09238006]
[1768135627806,0.09652762,91024.0,91007.0,0.09157824]
[1768135628013,6.2e-07,91024.0,91008.0,0.011002]
[1768135628205,6.5e-07,91025.0,91018.0,0.011001]
[1768135628404,6.5e-07,91025.0,91015.0,0.011001]
[1768135628614,6.5e-07,91025.0,91007.0,0.18208203]
[1768135628804,6.5e-07,91025.0,91020.0,0.011]
[1768135629005,0.09352,91034.0,91016.0,0.18208203]
[1768135629213,0.09352,91034.0,91020.0,0.011]
[1768135629510,0.010996,91057.0,91013.0,0.09352]
[1768135629511,0.010995,91062.0,91028.0,0.09050379]
[1768135629710,0.12852498,91054.0,91031.0,0.09157824]
[1768135629906,0.010998,91042.0,91032.0,0.09352]
[1768135630217,0.03010184,91043.0,91032.0,0.09352]
[1768135630416,0.010998,91038.0,91032.0,0.09352]
[1768135630618,0.010998,91037.0,91032.0,0.09352]
[1768135630914,0.010999,91035.0,91033.0,0.09352]
[1768135631210,0.03010184,91043.0,91033.0,0.09352]
[1768135631417,0.03010184,91043.0,91032.0,0.09352]
[1768135631618,0.010998,91040.0,91032.0,0.09352]
[1768135632112,0.010998,91043.0,91032.0,0.09352]
[1768135632314,0.04390725,91054.0,91032.0,0.09352]
[1768135632315,0.03291125,91054.0,91036.0,0.09050379]
[1768135632514,0.010997,91049.0,91038.0,0.09050379]
[1768135632717,0.03291125,91054.0,91039.0,0.09352]
[1768135632915,0.04390725,91054.0,91039.0,0.09352]
[1768135633213,0.04390725,91054.0,91039.0,0.27560203]
[1768135633414,0.010997,91051.0,91039.0,0.27560203]
[1768135633614,0.010997,91049.0,91035.0,0.95132]
[1768135633818,0.010997,91049.0,91036.0,0.09348]
[1768135634215,0.02319554,91047.0,91024.0,0.011]
[1768135634421,0.02319554,91042.0,91024.0,0.09348]
[1768135634733,0.02319554,91040.0,91025.0,0.011]
[1768135634916,0.02319554,91040.0,91024.0,0.09348]
[1768135635308,0.010999,91035.0,91018.0,0.18208203]
[1768135635509,0.011,91027.0,91016.0,0.09348]
[1768135635709,0.011,91024.0,91007.0,0.09157824]
[1768135636017,0.011,91024.0,91007.0,0.011002]
[1768135636318,0.011,91026.0,91008.0,0.011002]
[1768135637110,0.010999,91029.0,91011.0,0.011001]
[1768135637512,0.20009273,91032.0,91008.0,0.09157824]
[1768135637719,0.20009273,91032.0,91012.0,0.011001]
[1768135638323,0.01366871,91031.0,91012.0,0.011001]
[1768135638515,0.104479,91032.0,91014.0,0.011001]
[1768135638716,0.010999,91030.0,91013.0,0.09157824]
[1768135639118,0.010999,91030.0,91010.0,0.011002]
[1768135639119,0.02383391,91030.0,91010.0,0.011002]
[1768135639319,0.01283491,91029.0,91010.0,0.011002]
[1768135640422,0.010999,91028.0,91010.0,0.011002]
[1768135641425,0.011,91025.0,91008.0,0.18208203]
[1768135641927,0.01192007,91021.0,91007.0,0.011002]
[1768135642626,0.011,91023.0,91007.0,0.011002]
[1768135643726,0.02341724,91023.0,91007.0,0.011002]
[1768135644127,0.01241724,91023.0,91009.0,0.011002]
[1768135644431,0.011,91023.0,91006.0,0.09348]
[1768135645322,0.011,91023.0,91005.0,0.00549423]
[1768135645323,0.01085186,91022.0,91005.0,0.00549423]
[1768135645833,0.01085186,91021.0,91005.0,0.00549423]
[1768135647327,0.011001,91018.0,91007.0,0.18208203]
[1768135647523,0.00671591,91028.0,91011.0,0.011001]
[1768135647727,0.011,91027.0,91013.0,0.011001]
[1768135648023,0.09561373,91027.0,91007.0,0.011002]
[1768135648226,0.011,91026.0,91009.0,0.011002]
[1768135648731,0.10661373,91026.0,91009.0,0.011002]
[1768135649630,0.11188868,91026.0,91009.0,0.011002]
[1768135650032,0.00527495,91025.0,91009.0,0.011002]
[1768135650222,0.00527495,91025.0,91005.0,0.18757626]
[1768135651026,0.09561373,91026.0,91005.0,0.18757626]
[1768135651433,0.10661373,91026.0,91009.0,0.011002]
[1768135652422,0.09561373,91026.0,91012.0,0.011001]
[1768135652629,0.09561373,91026.0,91009.0,0.011002]
[1768135652931,0.00438649,91025.0,91009.0,0.011002]
[1768135654732,0.00438649,91024.0,91009.0,0.011002]
[1768135654936,0.011,91023.0,91009.0,0.011002]
[1768135655231,0.011,91023.0,91005.0,0.18757626]
[1768135655232,0.00438649,91024.0,91005.0,0.18757626]
[1768135655437,0.00412074,91022.0,91005.0,0.10807447]
[1768135655626,0.00412074,91016.0,91005.0,0.00549423]
[1768135655827,0.00412074,91015.0,91002.0,0.011003]
[1768135657825,0.01512174,91015.0,90999.0,0.011003]
[1768135658029,0.011001,91013.0,90999.0,0.011003]
[1768135658236,0.004125,91012.0,90996.0,0.09858215]
[1768135658534,0.011002,91011.0,90999.0,0.011003]
[1768135658932,0.004125,91012.0,90999.0,0.011003]
[1768135659128,0.015126,91012.0,90999.0,0.011003]
[1768135659324,0.004125,91012.0,90999.0,0.011003]
[1768135659526,0.09012513,91016.0,90995.0,0.011003]
[1768135659527,0.011002,91010.0,90995.0,0.011003]
[1768135660033,0.00193941,91003.0,90986.0,0.09858215]
[1768135660335,0.00193941,91003.0,90988.0,0.011004]
[1768135660336,0.00193941,91001.0,90988.0,0.011004]
[1768135660738,0.00193941,91001.0,90990.0,0.011004]
[1768135660938,0.00329729,91000.0,90990.0,0.00770671]
[1768135662738,0.09012513,91006.0,90990.0,0.00770671]
[1768135663239,0.10112713,91006.0,90992.0,0.011004]
[1768135663830,0.10112713,91006.0,90989.0,0.011004]
[1768135664039,0.09012513,91006.0,90985.0,0.00549544]
[1768135664938,0.011003,91002.0,90986.0,0.011004]
[1768135666633,0.011003,91000.0,90986.0,0.011004]
[1768135667534,0.09012513,91002.0,90988.0,0.011004]
[1768135667940,0.09012513,91002.0,90985.0,0.00549544]
[1768135667941,0.011003,91001.0,90985.0,0.01650044]
[1768135671234,0.09348,91000.0,90985.0,0.01650044]
[1768135672925,0.09348,91000.0,90987.0,0.011004]
[1768135674139,0.104483,91000.0,90987.0,0.011004]
[1768135674741,0.19460813,91000.0,90987.0,0.011004]
[1768135674937,0.09012513,90999.0,90986.0,0.011004]
[1768135675241,0.09348,91000.0,90986.0,0.011004]
[1768135675437,0.09348,91000.0,90989.0,0.011004]
[1768135675738,0.09348,91000.0,90985.0,0.00549544]
[1768135675938,0.09348,91000.0,90988.0,0.011004]
[1768135676831,0.09348,91000.0,90987.0,0.011004]
[1768135676832,0.104483,91000.0,90987.0,0.011004]
[1768135678142,0.104483,91000.0,90985.0,0.01650044]
[1768135681957,0.09012513,91016.0,90987.0,0.09766097]
[1768135682137,0.011001,91014.0,90998.0,0.011003]
[1768135682337,0.041001,91014.0,90999.0,0.011003]
[1768135682536,0.011001,91013.0,90999.0,0.011003]
[1768135683037,0.011001,91012.0,90998.0,0.011003]
[1768135683736,0.011001,91012.0,90999.0,0.011003]
[1768135685442,0.09352,91015.0,90994.0,0.19624312]
[1768135685646,0.09352,91015.0,91002.0,0.011002]
[1768135685846,0.10112613,91016.0,91002.0,0.011002]
[1768135686049,0.09352,91015.0,91002.0,0.011002]
[1768135686247,0.09352,91015.0,91004.0,0.011002]
[1768135686548,0.09352,91015.0,91008.0,0.011002]
[1768135687941,0.09352,91015.0,91005.0,0.1986331]
[1768135688653,0.09352,91015.0,91007.0,0.011002]
[1768135690643,0.78722165,91026.0,91007.0,0.011002]
[1768135690644,0.09352,91022.0,91007.0,0.011002]
[1768135690844,0.011,91020.0,91007.0,0.011002]
[1768135691047,0.011,91020.0,91005.0,0.1876311]
[1768135691555,0.09352,91022.0,91008.0,0.011002]
[1768135693256,0.011,91021.0,91006.0,0.011002]
[1768135693952,0.09352,91022.0,91008.0,0.011002]
[1768135694162,0.09352,91022.0,91008.0,0.1986331]
[1768135696059,0.09352,91022.0,91008.0,0.09030072]
[1768135696352,0.09352,91022.0,91010.0,0.011002]
[1768135696959,0.09352,91022.0,91008.0,0.09030072]
[1768135697254,0.09352,91022.0,91010.0,0.1876311]
[1768135697455,0.09352,91029.0,91012.0,0.1876311]
[1768135697651,0.09352,91029.0,91018.0,0.011001]
[1768135697852,0.09352,91029.0,91015.0,0.011001]
[1768135698047,0.09352,91029.0,91012.0,0.1876311]
[1768135698255,0.09352,91029.0,91015.0,0.011001]
[1768135698451,0.09352,91029.0,91012.0,0.1876311]
[1768135698452,0.09352,91029.0,91012.0,1e-07]
[1768135698759,0.011,91021.0,91005.0,0.011002]
[1768135698958,0.011,91024.0,91005.0,0.011002]
[1768135699160,0.1873402,91029.0,90998.0,0.07897417]
[1768135699352,0.010999,91028.0,91009.0,0.011002]
[1768135699551,0.1983392,91029.0,91009.0,0.011002]
[1768135699751,0.011,91027.0,91009.0,0.011002]
[1768135700161,0.10521275,91027.0,91009.0,0.011002]
[1768135700360,0.09421275,91027.0,91000.0,0.07897417]
[1768135700550,0.09421275,91027.0,91012.0,0.011001]
[1768135703566,0.011,91026.0,91008.0,0.39733038]
[1768135704461,0.09421275,91027.0,91012.0,0.011001]
[1768135704667,0.09421275,91027.0,91015.0,0.011001]
[1768135705167,0.104519,91029.0,91008.0,0.39733038]
[1768135705168,0.09352,91029.0,91011.0,0.09733038]
[1768135706164,0.09352,91029.0,91015.0,0.011001]
[1768135708470,0.18773275,91029.0,91015.0,0.011001]
[1768135711570,0.09352,91029.0,91018.0,0.011001]
[1768135711775,0.09352,91029.0,91015.0,0.011001]
[1768135712270,0.09352,91029.0,91019.0,0.011]
[1768135713064,0.09352,91029.0,91020.0,0.011]
[1768135713268,0.18646804,91032.0,91020.0,0.011]
[1768135713469,0.09421275,91030.0,91018.0,0.011001]
[1768135713666,0.09389635,91029.0,91018.0,0.011001]
[1768135713862,0.09348,91032.0,91011.0,0.09747821]
[1768135714069,0.09243784,91038.0,91026.0,0.011]
[1768135714262,0.18591784,91037.0,91026.0,0.011]
[1768135714463,0.18633419,91036.0,91024.0,0.011]
[1768135714663,0.09243784,91035.0,91024.0,0.011]